fUSD/lending_fUSD_20240404
["ID","MTS","AMOUNT","RATE_DAILY","PERIOD"]
[321492985,1712239890294,-500.0,0.00049863,120]
[321492986,1712239890303,-1557.69,0.00049863,120]
[321492987,1712239890312,-500.0,0.00049863,120]
[321492988,1712239890322,-500.0,0.00049863,120]
[321492989,1712239890330,-1446.69,0.00049863,120]
[321492990,1712239890340,-702.71,0.00049863,120]
[321492991,1712239890349,-500.0,0.00049863,120]
[321492992,1712239890358,-553.76622259,0.00049863,120]
[321492993,1712239890367,-500.0,0.00049863,120]
[321492994,1712239890378,-174.00366483,0.00049863,120]
[321492995,1712239890387,-500.0,0.00049863,120]
[321492996,1712239890396,-2000.0,0.00049863,30]
[321492997,1712239890406,-1745.27,0.00049863,120]
[321492998,1712239890415,-1286.6,0.00049863,120]
[321492999,1712239890424,-748.01,0.00049863,120]
[321493000,1712239890434,-999.21,0.00049863,120]
[321493001,1712239890443,-1245.24,0.00049863,120]
[321493002,1712239890454,-500.0,0.00049863,120]
[321493003,1712239890463,-500.0,0.00049863,120]
[321493004,1712239890473,-500.0,0.00049863,120]
[321493005,1712239890482,-1085.45,0.00049863,120]
[321493006,1712239890491,-500.0,0.00049863,120]
[321493007,1712239890500,-1455.27,0.00049863,120]
[321493008,1712239890511,-522.98158448,0.00049863,120]
[321493009,1712239890520,-500.0,0.00049863,120]
[321493010,1712239890532,-500.0,0.00049863,120]
[321493011,1712239890542,-500.0,0.00049863,120]
[321493012,1712239890551,-686.35,0.00049863,120]
[321493013,1712239890560,-500.0,0.00049863,120]
[321493014,1712239890570,-500.0,0.00049863,120]
[321493015,1712239890579,-500.0,0.00049863,120]
[321493016,1712239890588,-522.78798548,0.00049863,120]
[321493017,1712239890598,-500.0,0.00049863,120]
[321493018,1712239890607,-730.23,0.00049863,120]
[321493019,1712239890617,-1507.88,0.00049863,120]
[321493020,1712239890627,-533.57,0.00049863,120]
[321493021,1712239890636,-677.6,0.00049863,120]
[321493022,1712239890646,-1290.46,0.00049863,120]
[321493023,1712239890655,-500.0,0.00049863,120]
[321493024,1712239890670,-500.0,0.00049863,120]
[321493025,1712239890679,-500.0,0.00049863,120]
[321493026,1712239890688,-1994.21,0.00049863,120]
[321493027,1712239890698,-562.51956559,0.00049863,120]
[321493028,1712239890709,-1948.47,0.00049863,120]
[321493029,1712239890718,-959.62,0.00049863,120]
[321493030,1712239890728,-1592.91,0.00049863,120]
[321493031,1712239890737,-500.0,0.00049863,120]
[321493032,1712239890747,-1901.5,0.00049863,120]
[321493033,1712239890757,-500.0,0.00049863,120]
[321493034,1712239890767,-500.0,0.00049863,120]
[321493035,1712239890778,-500.0,0.00049863,120]
[321493036,1712239890787,-533.10565723,0.00049863,120]
[321493037,1712239890797,-500.0,0.00049863,120]
[321493038,1712239890806,-500.0,0.00049863,120]
[321493039,1712239890816,-1003.26,0.00049863,120]
[321493040,1712239890825,-1792.48,0.00049863,120]
[321493041,1712239890834,-500.0,0.00049863,120]
[321493042,1712239890845,-500.0,0.00049863,120]
[321493043,1712239890854,-500.0,0.00049863,120]
[321493044,1712239890864,-500.0,0.00049863,120]
[321493045,1712239890874,-500.0,0.00049863,120]
[321493046,1712239890883,-537.04871046,0.00049863,120]
[321493047,1712239890893,-500.0,0.00049863,120]
[321493048,1712239890902,-2176.63,0.00049863,120]
[321493049,1712239890911,-500.0,0.00049863,120]
[321493050,1712239890921,-2134.92,0.00049863,120]
[321493051,1712239890930,-1508.53,0.00049863,120]
[321493052,1712239890939,-500.0,0.00049863,120]
[321493053,1712239890949,-509.31757822,0.00049863,120]
[321493054,1712239890958,-500.0,0.00049863,120]
[321493055,1712239890968,-522.17946843,0.00049863,120]
[321493056,1712239890977,-500.0,0.00049863,2]
[321493057,1712239890987,-500.0,0.00049863,120]
[321493058,1712239890997,-500.0,0.00049863,120]
[321493059,1712239891007,-500.0,0.00049863,120]
[321493060,1712239891016,-500.0,0.00049863,120]
[321493061,1712239891028,-500.0,0.00049863,120]
[321493062,1712239891037,-500.0,0.00049863,120]
[321493063,1712239891046,-1062.68,0.00049863,120]
[321493064,1712239891056,-1295.23,0.00049863,120]
[321493065,1712239891066,-500.0,0.00049863,120]
[321493066,1712239891075,-500.0,0.00049863,120]
[321493067,1712239891085,-500.0,0.00049863,120]
[321493068,1712239891094,-500.0,0.00049863,120]
[321493069,1712239891104,-500.0,0.00049863,120]
[321493070,1712239891114,-500.0,0.00049863,120]
[321493071,1712239891124,-314.99873244,0.00049863,120]
[321493072,1712239891133,-500.0,0.00049863,120]
[321493073,1712239891142,-730.22,0.00049863,120]
[321493074,1712239891152,-500.0,0.00049863,120]
[321493075,1712239891161,-518.47830895,0.00049863,120]
[321493076,1712239891171,-500.0,0.00049863,120]
[321493077,1712239891180,-500.0,0.00049863,120]
[321493078,1712239891190,-500.0,0.00049863,120]
[321493079,1712239891200,-740.86,0.00049863,120]
[321493080,1712239891209,-500.0,0.00049863,120]
[321493081,1712239891219,-951.59,0.00049863,120]
[321493082,1712239891228,-524.31347641,0.00049863,120]
[321493083,1712239891238,-887.41,0.00049863,120]
[321493084,1712239891247,-698.65,0.00049863,120]
[321493085,1712239891256,-837.02,0.00049863,120]
[321493086,1712239891266,-500.0,0.00049863,120]
[321493087,1712239891277,-500.0,0.00049863,120]
[321493088,1712239891287,-500.0,0.00049863,120]
[321493089,1712239891297,-500.0,0.00049863,120]
[321493090,1712239891306,-1392.93,0.00049863,120]
[321493091,1712239891316,-500.0,0.00049863,120]
[321493092,1712239891326,-560.86,0.00049863,120]
[321493093,1712239891335,-605.58,0.00049863,120]
[321493094,1712239891345,-500.0,0.00049863,120]
[321493095,1712239891354,-1366.49,0.00049863,120]
[321493096,1712239891364,-962.52,0.00049863,120]
[321493097,1712239891374,-500.0,0.00049863,120]
[321493098,1712239891383,-500.0,0.00049863,120]
[321493099,1712239891392,-500.0,0.00049863,120]
[321493100,1712239891401,-500.0,0.00049863,120]
[321493101,1712239891411,-500.0,0.00049863,120]
[321493102,1712239891420,-500.0,0.00049863,120]
[321493103,1712239891430,-500.0,0.00049863,120]
[321493104,1712239891439,-500.0,0.00049863,120]
[321493105,1712239891449,-1193.6,0.00049863,120]
[321493106,1712239891458,-500.0,0.00049863,120]
[321493107,1712239891468,-542.38,0.00049863,120]
[321493108,1712239891477,-500.0,0.00049863,120]
[321493109,1712239891487,-1084.67,0.00049863,120]
[321493110,1712239891496,-621.75,0.00049863,120]
[321493111,1712239891507,-500.0,0.00049863,120]
[321493112,1712239891517,-500.0,0.00049863,120]
[321493113,1712239891527,-500.0,0.00049863,120]
[321493114,1712239891536,-712.66,0.00049863,120]
[321493115,1712239891546,-543.15713548,0.00049863,120]
[321493116,1712239891555,-1353.81,0.00049863,30]
[321493117,1712239891565,-1024.73,0.00049863,120]
[321493118,1712239891574,-500.0,0.00049863,120]
[321493119,1712239891584,-554.22,0.00049863,120]
[321493120,1712239891594,-500.0,0.00049863,120]
[321493121,1712239891604,-1434.93,0.00049863,120]
[321493122,1712239891613,-536.67719447,0.00049863,120]
[321493123,1712239891623,-500.0,0.00049863,120]
[321493124,1712239891633,-500.0,0.00049863,120]
[321493125,1712239891642,-513.39,0.00049863,120]
[321493126,1712239891652,-1473.76,0.00049863,120]
[321493127,1712239891662,-500.0,0.00049863,120]
[321493128,1712239891672,-500.0,0.00049863,2]
[321493129,1712239891686,-500.0,0.00049863,120]
[321493130,1712239891695,-500.0,0.00049863,120]
[321493131,1712239891704,-951.41,0.00049863,120]
[321493132,1712239891715,-1521.78,0.00049863,120]
[321493133,1712239891724,-1756.07,0.00049863,120]
[321493134,1712239891733,-500.0,0.00049863,120]
[321493135,1712239891742,-500.0,0.00049863,120]
[321493136,1712239891753,-500.0,0.00049863,120]
[321493137,1712239891764,-1286.48,0.00049863,120]
[321493138,1712239891774,-500.0,0.00049863,120]
[321493139,1712239891786,-637.67,0.00049863,120]
[321493140,1712239891796,-500.0,0.00049863,120]
[321493141,1712239891805,-499.29006358,0.00049863,120]
[321493142,1712239891815,-836.11,0.00049863,120]
[321493143,1712239891824,-1275.82,0.00049863,120]
[321493144,1712239891834,-556.95,0.00049863,120]
[321493145,1712239891844,-1000.0,0.00049863,120]
[321493146,1712239891853,-636.36,0.00049863,120]
[321493147,1712239891863,-500.0,0.00049863,120]
[321493148,1712239891873,-500.0,0.00049863,120]
[321493149,1712239891882,-675.35,0.00049863,120]
[321493150,1712239891892,-1269.75,0.00049863,120]
[321493151,1712239891902,-553.8383215,0.00049863,120]
[321493152,1712239891912,-532.11548797,0.00049863,120]
[321493153,1712239891921,-500.0,0.00049863,120]
[321493154,1712239891931,-638.31,0.00049863,120]
[321493155,1712239891943,-500.0,0.00049863,120]
[321493156,1712239891953,-500.0,0.00049863,120]
[321493157,1712239891963,-709.89,0.00049863,120]
[321493158,1712239891975,-500.0,0.00049863,120]
[321493159,1712239891985,-748.51,0.00049863,120]
[321493160,1712239891995,-516.75985979,0.00049863,120]
[321493161,1712239892005,-1383.82,0.00049863,120]
[321493162,1712239892015,-500.0,0.00049863,120]
[321493163,1712239892028,-1410.22,0.00049863,120]
[321493164,1712239892039,-500.0,0.00049863,120]
[321493165,1712239892049,-1951.59,0.00049863,120]
[321493166,1712239892058,-500.0,0.00049863,120]
[321493167,1712239892067,-500.0,0.00049863,120]
[321493168,1712239892076,-1417.62,0.00049863,120]
[321493169,1712239892086,-594.92,0.00049863,120]
[321493170,1712239892094,-1337.47,0.00049863,120]
[321493171,1712239892104,-522.40385917,0.00049863,120]
[321493172,1712239892113,-913.21,0.00049863,120]
[321493173,1712239892122,-500.0,0.00049863,120]
[321493174,1712239892132,-500.0,0.00049863,120]
[321493175,1712239892142,-598.3,0.00049863,120]
[321493176,1712239892153,-500.0,0.00049863,120]
[321493177,1712239892163,-162.79,0.00049863,120]
[321493178,1712239892172,-1775.91,0.00049863,120]
[321493179,1712239892182,-1316.72,0.00049863,120]
[321493180,1712239892193,-517.87916958,0.00049863,120]
[321493181,1712239892203,-1192.25,0.00049863,120]
[321493182,1712239892214,-500.0,0.00049863,120]
[321493183,1712239892224,-932.62,0.00049863,120]
[321493184,1712239892234,-601.3,0.00049863,120]
[321493185,1712239892243,-512.82239928,0.00049863,120]
[321493186,1712239892253,-500.0,0.00049863,120]
[321493187,1712239892263,-500.0,0.00049863,120]
[321493188,1712239892274,-500.0,0.00049863,120]
[321493189,1712239892290,-1342.7,0.00049863,120]
[321493190,1712239892301,-593.34,0.00049863,120]
[321493191,1712239892310,-500.0,0.00049863,120]
[321493192,1712239892320,-180.85457169,0.00049863,120]
[321493193,1712239892330,-500.0,0.00049863,120]
[321493194,1712239892340,-500.0,0.00049863,120]
[321493195,1712239892350,-500.0,0.00049863,120]
[321493196,1712239892359,-560.98,0.00049863,120]
[321493197,1712239892370,-1355.94,0.00049863,60]
[321493198,1712239892382,-500.0,0.00049863,120]
[321493199,1712239892394,-500.0,0.00049863,120]
[321493200,1712239892404,-1988.89,0.00049863,120]
[321493201,1712239892413,-1368.89,0.00049863,120]
[321493202,1712239892423,-1222.96,0.00049863,120]
[321493203,1712239892434,-514.52250048,0.00049863,120]
[321493204,1712239892446,-500.0,0.00049863,120]
[321493205,1712239892456,-500.0,0.00049863,120]
[321493206,1712239892467,-500.0,0.00049863,120]
[321493207,1712239892478,-555.24,0.00049863,120]
[321493208,1712239892489,-500.0,0.00049863,120]
[321493209,1712239892500,-763.38,0.00049863,120]
[321493210,1712239892511,-500.0,0.00049863,120]
[321493211,1712239892523,-500.0,0.00049863,120]
[321493212,1712239892537,-500.0,0.00049863,120]
[321493213,1712239892547,-1993.09,0.00049863,120]
[321493214,1712239892558,-1511.12,0.00049863,120]
[321493215,1712239892568,-500.0,0.00049863,120]
[321493216,1712239892578,-500.0,0.00049863,120]
[321493217,1712239892588,-752.95,0.00049863,120]
[321493218,1712239892597,-500.0,0.00049863,120]
[321493219,1712239892607,-500.0,0.00049863,120]
[321493220,1712239892617,-500.0,0.00049863,120]
[321493221,1712239892626,-500.0,0.00049863,120]
[321493222,1712239892636,-500.0,0.00049863,120]
[321493223,1712239892646,-1970.38,0.00049863,120]
[321493224,1712239892656,-500.0,0.00049863,120]
[321493225,1712239892669,-1328.61,0.00049863,120]
[321493226,1712239892682,-777.44,0.00049863,120]
[321493227,1712239892691,-866.9,0.00049863,120]
[321493228,1712239892704,-500.0,0.00049863,120]
[321493229,1712239892714,-500.0,0.00049863,120]
[321493230,1712239892724,-500.0,0.00049863,120]
[321493231,1712239892734,-500.0,0.00049863,120]
[321493232,1712239892744,-626.67,0.00049863,120]
[321493233,1712239892755,-500.0,0.00049863,120]
[321493234,1712239892765,-500.0,0.00049863,120]
[321493235,1712239892774,-500.0,0.00049863,120]
[321493236,1712239892786,-932.27,0.00049863,120]
[321493237,1712239892795,-500.0,0.00049863,120]
[321493238,1712239892805,-500.0,0.00049863,120]
[321493239,1712239892814,-603.35,0.00049863,120]
[321493240,1712239892824,-1243.0,0.00049863,120]
[321493241,1712239892833,-623.16,0.00049863,120]
[321493242,1712239892842,-500.0,0.00049863,120]
[321493243,1712239892852,-500.0,0.00049863,120]
[321493244,1712239892862,-500.0,0.00049863,120]
[321493245,1712239892873,-2036.12,0.00049863,120]
[321493246,1712239892882,-661.2,0.00049863,120]
[321493247,1712239892892,-2181.26,0.00049863,120]
[321493248,1712239892901,-1804.36,0.00049863,120]
[321493249,1712239892911,-500.0,0.00049863,120]
[321493250,1712239892921,-500.0,0.00049863,120]
[321493251,1712239892931,-500.0,0.00049863,120]
[321493252,1712239892940,-1305.82,0.00049863,120]
[321493253,1712239892951,-500.0,0.00049863,120]
[321493254,1712239892961,-1121.72,0.00049863,120]
[321493255,1712239892970,-500.0,0.00049863,120]
[321493256,1712239892980,-500.0,0.00049863,120]
[321493257,1712239892990,-3321.65,0.00049863,21]
[321493258,1712239893002,-1026.0,0.00049863,120]
[321493259,1712239893014,-1138.68,0.00049863,120]
[321493260,1712239893024,-1444.44,0.00049863,120]
[321493261,1712239893036,-715.47,0.00049863,120]
[321493262,1712239893045,-500.0,0.00049863,120]
[321493263,1712239893056,-500.0,0.00049863,120]
[321493264,1712239893066,-1054.81,0.00049863,120]
[321493265,1712239893077,-500.0,0.00049863,120]
[321493266,1712239893087,-500.0,0.00049863,120]
[321493267,1712239893097,-5353.5,0.00049863,120]
[321493268,1712239893107,-500.0,0.00049863,120]
[321493269,1712239893118,-500.0,0.00049863,120]
[321493270,1712239893128,-500.0,0.00049863,120]
[321493271,1712239893138,-500.0,0.00049863,120]
[321493272,1712239893147,-500.0,0.00049863,120]
[321493273,1712239893156,-500.0,0.00049863,120]
[321493274,1712239893165,-500.0,0.00049863,120]
[321493275,1712239893175,-500.0,0.00049863,120]
[321493276,1712239893184,-500.0,0.00049863,120]
[321493277,1712239893193,-500.0,0.00049863,120]
[321493278,1712239893203,-824.37,0.00049863,120]
[321493279,1712239893213,-503.87265995,0.00049863,120]
[321493280,1712239893222,-500.0,0.00049863,120]
[321493281,1712239893232,-524.58,0.00049863,120]
[321493282,1712239893241,-500.0,0.00049863,120]
[321493283,1712239893251,-1552.56,0.00049863,120]
[321493284,1712239893261,-708.44,0.00049863,120]
[321493285,1712239893270,-500.0,0.00049863,120]
[321493286,1712239893282,-10271.29,0.00049863,120]
[321493287,1712239893291,-500.0,0.00049863,120]
[321493288,1712239893301,-500.0,0.00049863,120]
[321493289,1712239893310,-500.0,0.00049863,120]
[321493290,1712239893319,-917.65,0.00049863,2]
[321493291,1712239893328,-1373.86,0.00049863,120]
[321493292,1712239893337,-500.0,0.00049863,120]
[321493293,1712239893346,-668.79,0.00049863,120]
[321493294,1712239893559,-500.0,0.00049863,120]
[321493295,1712239893570,-863.14,0.00049863,120]
[321493296,1712239893579,-1172.43,0.00049863,120]
[321493297,1712239893589,-1167.29,0.00049863,120]
[321493298,1712239893598,-4868.56,0.00049863,120]
[321493299,1712239893607,-500.0,0.00049863,120]
[321493300,1712239893617,-500.0,0.00049863,120]
[321493301,1712239893626,-500.0,0.00049863,120]
[321493302,1712239893636,-500.0,0.00049863,120]
[321493303,1712239893645,-500.0,0.00049863,120]
[321493304,1712239893655,-997.85,0.00049863,120]
[321493305,1712239893668,-500.0,0.00049863,120]
[321493306,1712239893677,-762.97,0.00049863,120]
[321493307,1712239893687,-11999.39,0.00049863,120]
[321493308,1712239893696,-1222.78,0.00049863,120]
[321493309,1712239893707,-500.0,0.00049863,120]
[321493310,1712239893716,-500.0,0.00049863,120]
[321493311,1712239893725,-1051.02,0.00049863,120]
[321493312,1712239893735,-576.52,0.00049863,120]
[321493313,1712239893750,-700.96,0.00049863,120]
[321493314,1712239893761,-520.21,0.00049863,120]
[321493315,1712239893771,-508.06164014,0.00049863,120]
[321493316,1712239893782,-500.0,0.00049863,120]
[321493317,1712239893791,-9499.6,0.00049863,120]
[321493318,1712239893801,-500.0,0.00049863,120]
[321493319,1712239893811,-532.46,0.00049863,120]
[321493320,1712239893820,-500.0,0.00049863,120]
[321493321,1712239893830,-500.0,0.00049863,120]
[321493322,1712239893839,-500.0,0.00049863,120]
[321493323,1712239893849,-500.0,0.00049863,120]
[321493324,1712239893858,-500.0,0.00049863,120]
[321493325,1712239893867,-500.0,0.00049863,120]
[321493326,1712239893877,-681.76,0.00049863,120]
[321493327,1712239893886,-1179.14,0.00049863,120]
[321493328,1712239893895,-949.32,0.00049863,120]
[321493329,1712239893905,-500.0,0.00049863,120]
[321493330,1712239893914,-500.0,0.00049863,120]
[321493331,1712239893923,-1509.5,0.00049863,120]
[321493332,1712239893933,-2641.28,0.00049863,120]
[321493333,1712239893942,-1351.46,0.00049863,120]
[321493334,1712239893951,-500.0,0.00049863,120]
[321493335,1712239893960,-500.0,0.00049863,120]
[321493336,1712239893969,-7231.53,0.00049863,120]
[321493337,1712239893978,-597.38,0.00049863,120]
[321493338,1712239893988,-500.0,0.00049863,120]
[321493339,1712239893997,-5935.25,0.00049863,120]
[321493340,1712239894006,-500.0,0.00049863,120]
[321493341,1712239894016,-6527.67,0.00049863,120]
[321493342,1712239894025,-500.0,0.00049863,120]
[321493343,1712239894035,-500.0,0.00049863,120]
[321493344,1712239894045,-500.0,0.00049863,120]
[321493345,1712239894055,-3578.24,0.00049863,120]
[321493346,1712239894064,-501.79178394,0.00049863,120]
[321493347,1712239894074,-500.0,0.00049863,120]
[321493348,1712239894083,-500.0,0.00049863,120]
[321493349,1712239894092,-711.11,0.00049863,120]
[321493350,1712239894102,-500.0,0.00049863,120]
[321493351,1712239894112,-1144.32,0.00049863,120]
[321493352,1712239894122,-2503.68,0.00049863,120]
[321493353,1712239894132,-528.75898161,0.00049863,120]
[321493354,1712239894141,-500.0,0.00049863,120]
[321493355,1712239894150,-500.0,0.00049863,120]
[321493356,1712239894159,-778.91,0.00049863,120]
[321493357,1712239894169,-5207.65,0.00049863,120]
[321493358,1712239894178,-522.35899316,0.00049863,120]
[321493359,1712239894187,-1304.12,0.00049863,120]
[321493360,1712239894196,-500.0,0.00049863,120]
[321493361,1712239894205,-500.0,0.00049863,120]
[321493362,1712239894214,-175.0,0.00049863,120]
[321493363,1712239894223,-500.0,0.00049863,120]
[321493364,1712239894232,-500.0,0.00049863,120]
[321493365,1712239894241,-500.0,0.00049863,120]
[321493366,1712239894251,-500.0,0.00049863,120]
[321493367,1712239894260,-500.0,0.00049863,120]
[321493368,1712239894269,-500.0,0.00049863,30]
[321493369,1712239894279,-1355.2,0.00049863,120]
[321493370,1712239894288,-5255.56,0.00049863,120]
[321493371,1712239894298,-3224.66,0.00049863,120]
[321493372,1712239894307,-500.0,0.00049863,120]
[321493373,1712239894317,-704.48,0.00049863,120]
[321493374,1712239894327,-17701.25,0.00049863,120]
[321493375,1712239894336,-1271.93,0.00049863,120]
[321493376,1712239894345,-6422.93,0.00049863,120]
[321493377,1712239894355,-500.0,0.00049863,120]
[321493378,1712239894364,-505.29598161,0.00049863,120]
[321493379,1712239894374,-500.0,0.00049863,120]
[321493380,1712239894383,-500.0,0.00049863,120]
[321493381,1712239894393,-500.0,0.00049863,120]
[321493382,1712239894404,-2255.12,0.00049863,120]
[321493383,1712239894413,-500.0,0.00049863,120]
[321493384,1712239894422,-1007.66,0.00049863,120]
[321493385,1712239894431,-500.0,0.00049863,120]
[321493386,1712239894440,-2139.11,0.00049863,120]
[321493387,1712239894449,-6990.78,0.00049863,120]
[321493388,1712239894459,-707.87,0.00049863,120]
[321493389,1712239894469,-500.0,0.00049863,120]
[321493390,1712239894478,-1628.47,0.00049863,120]
[321493391,1712239894487,-500.0,0.00049863,120]
[321493392,1712239894496,-966.87,0.00049863,120]
[321493393,1712239894506,-1242.57,0.00049863,120]
[321493394,1712239894515,-500.0,0.00049863,120]
[321493395,1712239894524,-500.0,0.00049863,120]
[321493396,1712239894536,-1197.26,0.00049863,120]
[321493397,1712239894545,-614.44,0.00049863,120]
[321493398,1712239894554,-2087.94,0.00049863,120]
[321493399,1712239894564,-1944.92,0.00049863,120]
[321493400,1712239894573,-500.0,0.00049863,120]
[321493401,1712239894582,-1834.97,0.00049863,120]
[321493402,1712239894592,-500.0,0.00049863,120]
[321493403,1712239894601,-500.0,0.00049863,120]
[321493404,1712239894610,-500.0,0.00049863,120]
[321493405,1712239894619,-840.23,0.00049863,120]
[321493406,1712239894629,-58155.63,0.00049863,120]
[321493407,1712239894638,-4225.41,0.00049863,120]
[321493408,1712239894648,-655.95,0.00049863,120]
[321493409,1712239894657,-500.0,0.00049863,120]
[321493410,1712239894668,-500.0,0.00049863,120]
[321493411,1712239894679,-519.73308504,0.00049863,120]
[321493412,1712239894689,-500.0,0.00049863,120]
[321493413,1712239894698,-500.0,0.00049863,120]
[321493414,1712239894708,-500.0,0.00049863,120]
[321493415,1712239894717,-1159.47,0.00049863,120]
[321493416,1712239894727,-509.18227552,0.00049863,120]
[321493417,1712239894736,-500.0,0.00049863,120]
[321493418,1712239894747,-500.0,0.00049863,120]
[321493419,1712239894757,-2975.01,0.00049863,120]
[321493420,1712239894766,-1921.24,0.00049863,7]
[321493421,1712239894775,-916.81,0.00049863,120]
[321493422,1712239894786,-1408.67,0.00049863,120]
[321493423,1712239894795,-2740.22,0.00049863,120]
[321493424,1712239894804,-500.0,0.00049863,120]
[321493425,1712239894814,-515.46748613,0.00049863,120]
[321493426,1712239894823,-538.14,0.00049863,120]
[321493427,1712239894833,-2289.17,0.00049863,120]
[321493428,1712239894842,-531.26950024,0.00049863,120]
[321493429,1712239894852,-509.28701013,0.00049863,120]
[321493430,1712239894861,-840.41,0.00049863,120]
[321493431,1712239894870,-975.92,0.00049863,120]
[321493432,1712239894879,-528.2,0.00049863,120]
[321493433,1712239894889,-765.18,0.00049863,120]
[321493434,1712239894898,-2652.93,0.00049863,120]
[321493435,1712239894907,-14155.02,0.00049863,120]
[321493436,1712239894917,-1820.12,0.00049863,120]
[321493437,1712239894926,-1457.72,0.00049863,120]
[321493438,1712239894935,-946.41,0.00049863,120]
[321493439,1712239894944,-1807.22,0.00049863,120]
[321493440,1712239894954,-2948.42,0.00049863,120]
[321493441,1712239894963,-500.0,0.00049863,120]
[321493442,1712239894973,-500.0,0.00049863,120]
[321493443,1712239894982,-1773.22,0.00049863,120]
[321493444,1712239894991,-500.0,0.00049863,120]
[321493445,1712239895001,-573.11,0.00049863,120]
[321493446,1712239895010,-500.0,0.00049863,120]
[321493447,1712239895019,-522.87969377,0.00049863,120]
[321493448,1712239895029,-3235.18,0.00049863,120]
[321493449,1712239895043,-500.0,0.00049863,120]
[321493450,1712239895052,-3122.07,0.00049863,120]
[321493451,1712239895063,-500.0,0.00049863,120]
[321493452,1712239895073,-688.81,0.00049863,120]
[321493453,1712239895083,-500.0,0.00049863,120]
[321493454,1712239895092,-500.0,0.00049863,120]
[321493455,1712239895101,-500.0,0.00049863,120]
[321493456,1712239895111,-512.06,0.00049863,120]
[321493457,1712239895119,-500.0,0.00049863,120]
[321493458,1712239895129,-3875.84,0.00049863,120]
[321493459,1712239895138,-960.23,0.00049863,120]
[321493460,1712239895147,-500.0,0.00049863,120]
[321493461,1712239895156,-1372.55,0.00049863,120]
[321493462,1712239895166,-5129.79,0.00049863,120]
[321493463,1712239895176,-543.41,0.00049863,120]
[321493464,1712239895185,-500.0,0.00049863,120]
[321493465,1712239895194,-500.0,0.00049863,120]
[321493466,1712239895203,-1553.56,0.00049863,120]
[321493467,1712239895213,-500.0,0.00049863,120]
[321493468,1712239895222,-1315.88,0.00049863,120]
[321493469,1712239895232,-2582.0,0.00049863,120]
[321493470,1712239895241,-548.9,0.00049863,120]
[321493471,1712239895251,-500.0,0.00049863,120]
[321493472,1712239895260,-500.0,0.00049863,120]
[321493473,1712239895270,-500.0,0.00049863,120]
[321493474,1712239895287,-792.46,0.00049863,120]
[321493475,1712239895296,-500.0,0.00049863,120]
[321493476,1712239895307,-2649.33,0.00049863,120]
[321493477,1712239895316,-2235.06,0.00049863,120]
[321493478,1712239895325,-4891.89,0.00049863,120]
[321493479,1712239895335,-7420.22,0.00049863,120]
[321493480,1712239895344,-500.0,0.00049863,120]
[321493481,1712239895353,-1512.16,0.00049863,120]
[321493482,1712239895363,-658.15,0.00049863,120]
[321493483,1712239895373,-2949.72,0.00049863,120]
[321493484,1712239895383,-500.0,0.00049863,120]